[Event "European Womens-ch 2025"]
[Site "Rhodes"]
[Date "2025.04.09"]
[Round "9.1"]
[White "Injac, Teodora"]
[Black "Mkrtchian, Lilit"]
[Result "1-0"]
[Annotator "ChessBase"]
[ECO "D02"]
[WhiteElo "2454"]
[BlackElo "2388"]
[PlyCount "77"]
[EventDate "2025.03.29"]
[EventType "swiss"]
[EventCountry "GRE"]
[SourceTitle "playchess.com"]
[Source "ChessBase"]
[SourceQuality "1"]
[TimeControl "40/5400+30:1800+30"]

1. d4 {[%emt 0:00:20]} Nf6 {[%emt 0:00:52]} 2. Nf3 {[%emt 0:00:24]} d5 {[%emt 0:00:37]} 3. Bf4 {[%emt 0:00:16]} e6 {[%emt 0:04:26]} 4. e3 {[%emt 0:00:12]} c5 {[%emt 0:03:07]} 5. Nbd2 {[%emt 0:02:40]} Nc6 {[%emt 0:00:22]} 6. c3 {[%emt 0:00:25]} cxd4 {[%emt 0:01:30]} 7. exd4 {[%emt 0:00:04]} Nh5 {[%emt 0:00:19]} 8. Be3 {[%emt 0:00:52]} Bd6 {[%emt 0:00:14]} 9. Bb5 {[%emt 0:03:48]} Bd7 {[%emt 0:09:53]} 10. O-O {[%emt 0:06:53]} O-O {[%emt 0:01:54]} 11. Re1 {[%emt 0:12:27]} g6 {[%emt 0:14:44]} 12. Nb3 {[%emt 0:03:40]} Ne7 {[%emt 0:10:03]} 13. Bf1 {[%emt 0:06:48]} f6 {[%emt 0:08:38]} 14. Bh6 {[%emt 0:19:33]} Re8 {[%emt 0:01:07]} 15. Nc5 {[%emt 0:06:56]} Bxc5 {[%emt 0:03:54]} 16. dxc5 {[%emt 0:00:03]} Qc7 {[%emt 0:11:28]} 17. g4 {[%emt 0:06:19]} Ng7 {[%emt 0:00:04]} 18. b4 {[%emt 0:04:55]} Rad8 {[%emt 0:12:55]} 19. Qd2 {[%emt 0:00:34]} Bc8 {[%emt 0:03:25]} 20. Nd4 {[%emt 0:04:58]} Nc6 {[%emt 0:05:54]} 21. Nb5 {[%emt 0:00:20]} Qe7 {[%emt 0:00:37]} 22. Nd6 {[%emt 0:01:14]} Rf8 {[%emt 0:00:31]} 23. Bg2 {[%emt 0:02:45]} Ne5 {[%emt 0:00:44]} 24. Qe2 {[%emt 0:00:46]} b6 {[%emt 0:04:18]} 25. f4 {[%emt 0:07:28]} Nf7 {[%emt 0:00:09]} 26. Bxg7 {[%emt 0:00:55]} Kxg7 {[%emt 0:00:02]} 27. Nxc8 {[%emt 0:00:06]} Rxc8 {[%emt 0:00:04]} 28. Qxe6 {[%emt 0:02:27]} Qc7 {[%emt 0:00:25]} 29. Qxd5 {[%emt 0:03:21]} bxc5 {[%emt 0:00:38]} 30. bxc5 {[%emt 0:02:39]} Qxf4 {[%emt 0:01:18]} 31. Re7 {[%emt 0:00:34]} Rb8 {[%emt 0:01:16]} 32. Qd4 {[%emt 0:00:55]} Qg5 {[%emt 0:00:19]} 33. Rf1 {[%emt 0:00:48]} Rb2 {[%emt 0:00:20]} 34. Kh1 {[%emt 0:00:30]} Rd2 {[%emt 0:00:42]} 35. Qf4 {[%emt 0:00:30]} Qxf4 {[%emt 0:00:40]} 36. Rxf4 {[%emt 0:00:02]} Rxa2 {[%emt 0:00:24]} 37. Bd5 {[%emt 0:00:35]} Rd2 {[%emt 0:00:14]} 38. Rd4 {[%emt 0:00:32]} Rb2 {[%emt 0:00:50]} 39. Ra4 {[%emt 0:00:27]} 1-0

[Event "European Womens-ch 2025"]
[Site "Rhodes"]
[Date "2025.04.09"]
[Round "9.2"]
[White "Bulmaga, Irina"]
[Black "Kirtadze, Anastasia"]
[Result "1-0"]
[Annotator "ChessBase"]
[ECO "B45"]
[WhiteElo "2362"]
[BlackElo "2180"]
[PlyCount "85"]
[EventDate "2025.03.29"]
[EventType "swiss"]
[EventCountry "GRE"]
[SourceTitle "playchess.com"]
[Source "ChessBase"]
[SourceQuality "1"]
[TimeControl "40/5400+30:1800+30"]

1. e4 {[%emt 0:00:04]} c5 {[%emt 0:00:15]} 2. Nf3 {[%emt 0:00:08]} e6 {[%emt 0:00:03]} 3. d4 {[%emt 0:00:18]} cxd4 {[%emt 0:00:04]} 4. Nxd4 {[%emt 0:00:07]} Nf6 {[%emt 0:00:20]} 5. Nc3 {[%emt 0:00:20]} Nc6 {[%emt 0:00:03]} 6. Ndb5 {[%emt 0:00:18]} Bb4 {[%emt 0:00:06]} 7. a3 {[%emt 0:00:21]} Bxc3+ {[%emt 0:00:03]} 8. Nxc3 {[%emt 0:00:09]} d5 {[%emt 0:00:04]} 9. exd5 {[%emt 0:00:24]} exd5 {[%emt 0:00:34]} 10. Bd3 {[%emt 0:00:24]} O-O {[%emt 0:00:03]} 11. O-O {[%emt 0:00:18]} Bg4 {[%emt 0:00:43]} 12. f3 {[%emt 0:02:15]} Bh5 {[%emt 0:00:03]} 13. Ne2 {[%emt 0:00:23]} Qb6+ {[%emt 0:28:02]} 14. Kh1 {[%emt 0:00:41]} Bg6 {[%emt 0:01:46]} 15. b3 {[%emt 0:06:26]} d4 {[%emt 0:06:40]} 16. Bxg6 {[%emt 0:09:20]} hxg6 {[%emt 0:01:41]} 17. Bb2 {[%emt 0:00:25]} Rad8 {[%emt 0:02:57]} 18. Nf4 {[%emt 0:02:40]} g5 {[%emt 0:12:16]} 19. Nh3 {[%emt 0:02:54]} Rd5 {[%emt 0:04:09]} 20. Qd2 {[%emt 0:05:17]} g4 {[%emt 0:09:25]} 21. Nf4 {[%emt 0:09:31]} Re5 {[%emt 0:05:10]} 22. Rad1 {[%emt 0:04:22]} gxf3 {[%emt 0:02:05]} 23. gxf3 {[%emt 0:02:49]} Rd8 {[%emt 0:03:42]} 24. Rg1 {[%emt 0:02:12]} Qc7 {[%emt 0:06:19]} 25. Qg2 {[%emt 0:05:12]} Ne8 {[%emt 0:01:06]} 26. Ne2 {[%emt 0:05:20]} Red5 {[%emt 0:01:45]} 27. f4 {[%emt 0:03:43]} Qd7 {[%emt 0:04:50]} 28. Rd3 {[%emt 0:03:41]} Qf5 {[%emt 0:03:04]} 29. b4 {[%emt 0:12:01]} R8d6 {[%emt 0:03:07]} 30. Bc1 {[%emt 0:04:17]} Rg6 {[%emt 0:01:58]} 31. Ng3 {[%emt 0:00:41]} Qd7 {[%emt 0:00:25]} 32. c4 {[%emt 0:01:05]} Rdd6 {[%emt 0:00:30]} 33. f5 {[%emt 0:03:23]} Rg4 {[%emt 0:00:35]} 34. h3 {[%emt 0:02:17]} Rh4 {[%emt 0:00:16]} 35. Bg5 {[%emt 0:01:45]} Rh7 {[%emt 0:00:57]} 36. Bf4 {[%emt 0:01:53]} Rf6 {[%emt 0:00:42]} 37. Kh2 {[%emt 0:01:40]} Rxf5 {[%emt 0:02:28]} 38. Nxf5 {[%emt 0:00:41]} Qxf5 {[%emt 0:00:01]} 39. Rf3 {[%emt 0:00:41]} d3 {[%emt 0:00:57]} 40. Bd2 {[%emt 0:00:00]} Qe5+ {[%emt 0:00:00]} 41. Qg3 {[%emt 0:05:33]} Nf6 {[%emt 0:07:51]} 42. Qxe5 {[%emt 0:02:06]} Nxe5 {[%emt 0:00:06]} 43. Rxf6 {[%emt 0:00:17]} 1-0

[Event "European Womens-ch 2025"]
[Site "Rhodes"]
[Date "2025.04.09"]
[Round "9.3"]
[White "Ushenina, Anna"]
[Black "Javakhishvili, Lela"]
[Result "1/2-1/2"]
[Annotator "ChessBase"]
[ECO "E56"]
[WhiteElo "2428"]
[BlackElo "2429"]
[PlyCount "33"]
[EventDate "2025.03.29"]
[EventType "swiss"]
[EventCountry "GRE"]
[SourceTitle "playchess.com"]
[Source "ChessBase"]
[SourceQuality "1"]
[TimeControl "40/5400+30:1800+30"]

1. d4 {[%emt 0:00:08]} Nf6 {[%emt 0:00:07]} 2. c4 {[%emt 0:00:27]} e6 {[%emt 0:00:07]} 3. Nc3 {[%emt 0:00:11]} Bb4 {[%emt 0:00:19]} 4. e3 {[%emt 0:00:06]} O-O {[%emt 0:00:12]} 5. Bd3 {[%emt 0:00:07]} d5 {[%emt 0:00:07]} 6. Nf3 {[%emt 0:00:43]} dxc4 {[%emt 0:00:19]} 7. Bxc4 {[%emt 0:00:04]} c5 {[%emt 0:00:05]} 8. O-O {[%emt 0:00:10]} Nc6 {[%emt 0:00:16]} 9. a3 {[%emt 0:04:51]} Ba5 {[%emt 0:00:07]} 10. h3 {[%emt 0:03:56]} h6 {[%emt 0:04:04]} 11. Re1 {[%emt 0:27:06]} cxd4 {[%emt 0:06:39]} 12. exd4 {[%emt 0:00:11]} Bc7 {[%emt 0:05:32]} 13. Ba2 {[%emt 0:22:23]} a6 {[%emt 0:06:36]} 14. Be3 {[%emt 0:03:25]} Ne7 {[%emt 0:04:08]} 15. Qd3 {[%emt 0:07:05]} b5 {[%emt 0:11:11]} 16. Rad1 {[%emt 0:01:12]} Bb7 {[%emt 0:01:35]} 17. Bc1 {[%emt 0:04:26]} 1/2-1/2

[Event "European Womens-ch 2025"]
[Site "Rhodes"]
[Date "2025.04.09"]
[Round "9.4"]
[White "Batsiashvili, Nino"]
[Black "Maltsevskaya, Aleksandra"]
[Result "0-1"]
[Annotator "ChessBase"]
[ECO "D35"]
[WhiteElo "2473"]
[BlackElo "2376"]
[PlyCount "102"]
[EventDate "2025.03.29"]
[EventType "swiss"]
[EventCountry "GRE"]
[SourceTitle "playchess.com"]
[Source "ChessBase"]
[SourceQuality "1"]
[TimeControl "40/5400+30:1800+30"]

1. d4 {[%emt 0:00:01]} d5 {[%emt 0:00:09]} 2. c4 {[%emt 0:00:04]} e6 {[%emt 0:00:05]} 3. Nc3 {[%emt 0:00:03]} Nf6 {[%emt 0:00:07]} 4. cxd5 {[%emt 0:00:05]} exd5 {[%emt 0:00:24]} 5. Bg5 {[%emt 0:00:06]} Bb4 {[%emt 0:10:17]} 6. e3 {[%emt 0:01:58]} h6 {[%emt 0:03:07]} 7. Bh4 {[%emt 0:01:43]} c6 {[%emt 0:16:06]} 8. Bd3 {[%emt 0:00:28]} O-O {[%emt 0:07:47]} 9. Qc2 {[%emt 0:02:54]} c5 {[%emt 0:07:04]} 10. dxc5 {[%emt 0:22:26]} d4 {[%emt 0:02:14]} 11. exd4 {[%emt 0:00:55]} Qxd4 {[%emt 0:00:26]} 12. Nf3 {[%emt 0:13:17]} Bxc3+ {[%emt 0:01:18]} 13. bxc3 {[%emt 0:01:05]} Re8+ {[%emt 0:00:08]} 14. Be2 {[%emt 0:02:23]} Qe4 {[%emt 0:09:53]} 15. Rc1 {[%emt 0:06:40]} g5 {[%emt 0:20:38]} 16. Bg3 {[%emt 0:00:28]} Nc6 {[%emt 0:00:08]} 17. Qxe4 {[%emt 0:16:44]} Nxe4 {[%emt 0:00:26]} 18. Kf1 {[%emt 0:01:01]} Be6 {[%emt 0:02:20]} 19. h4 {[%emt 0:01:40]} Bxa2 {[%emt 0:01:55]} 20. hxg5 {[%emt 0:00:20]} hxg5 {[%emt 0:00:05]} 21. Bb5 {[%emt 0:06:10]} a6 {[%emt 0:09:32]} 22. Ba4 {[%emt 0:01:25]} Rad8 {[%emt 0:02:13]} 23. Bc7 {[%emt 0:04:48]} Rd5 {[%emt 0:02:44]} 24. Bxc6 {[%emt 0:05:48]} bxc6 {[%emt 0:00:04]} 25. Re1 {[%emt 0:00:06]} Re6 {[%emt 0:00:11]} 26. Kg1 {[%emt 0:05:02]} Nxc5 {[%emt 0:01:47]} 27. Ra1 {[%emt 0:00:34]} Bc4 {[%emt 0:02:16]} 28. Nd4 {[%emt 0:00:20]} Nb3 {[%emt 0:00:20]} 29. Nxb3 {[%emt 0:03:41]} Bxb3 {[%emt 0:00:04]} 30. Rh5 {[%emt 0:01:02]} c5 {[%emt 0:01:05]} 31. Kh2 {[%emt 0:00:29]} Kg7 {[%emt 0:00:32]} 32. Kg3 {[%emt 0:01:43]} f6 {[%emt 0:00:15]} 33. Rah1 {[%emt 0:00:25]} Bc2 {[%emt 0:00:14]} 34. Rh8 {[%emt 0:00:33]} Rd3+ {[%emt 0:01:03]} 35. f3 {[%emt 0:00:13]} Rd7 {[%emt 0:00:04]} 36. Ba5 {[%emt 0:00:19]} c4 {[%emt 0:00:56]} 37. Rc8 {[%emt 0:00:12]} Bd3 {[%emt 0:00:31]} 38. Bb4 {[%emt 0:00:23]} Re2 {[%emt 0:00:31]} 39. Ra8 {[%emt 0:00:55]} Bf5 {[%emt 0:00:24]} 40. Rxa6 {[%emt 0:00:00]} Rdd2 {[%emt 0:00:00]} 41. Rg1 {[%emt 0:03:08]} Be6 {[%emt 0:04:31]} 42. Bc5 {[%emt 0:08:26]} f5 {[%emt 0:04:54]} 43. Bd4+ {[%emt 0:00:46]} Kg6 {[%emt 0:00:23]} 44. Kh2 {[%emt 0:02:18]} f4 {[%emt 0:01:38]} 45. Rb1 {[%emt 0:05:42]} g4 {[%emt 0:00:30]} 46. Kh1 {[%emt 0:07:34]} Kg5 {[%emt 0:18:24]} 47. fxg4 {[%emt 0:02:30]} Kh4 {[%emt 0:00:33]} 48. Rd6 {[%emt 0:05:01]} Rxg2 {[%emt 0:00:49]} 49. Be5 {[%emt 0:00:31]} Rh2+ {[%emt 0:01:29]} 50. Kg1 {[%emt 0:00:01]} Rdg2+ {[%emt 0:00:06]} 51. Kf1 {[%emt 0:00:06]} Kh3 {[%emt 0:00:12]} 0-1

[Event "European Womens-ch 2025"]
[Site "Rhodes"]
[Date "2025.04.09"]
[Round "9.5"]
[White "Arabidze, Meri"]
[Black "Milliet, Sophie"]
[Result "1/2-1/2"]
[Annotator "ChessBase"]
[ECO "A20"]
[WhiteElo "2447"]
[BlackElo "2371"]
[PlyCount "106"]
[EventDate "2025.03.29"]
[EventType "swiss"]
[EventCountry "GRE"]
[SourceTitle "playchess.com"]
[Source "ChessBase"]
[SourceQuality "1"]
[TimeControl "40/5400+30:1800+30"]

1. c4 {[%emt 0:00:03]} e5 {[%emt 0:00:16]} 2. g3 {[%emt 0:00:07]} c6 {[%emt 0:00:39]} 3. Nf3 {[%emt 0:00:08]} e4 {[%emt 0:00:12]} 4. Nd4 {[%emt 0:00:05]} d5 {[%emt 0:00:08]} 5. cxd5 {[%emt 0:00:11]} Qxd5 {[%emt 0:00:04]} 6. Nc2 {[%emt 0:00:14]} Nf6 {[%emt 0:00:27]} 7. Nc3 {[%emt 0:00:09]} Qe5 {[%emt 0:00:06]} 8. Bg2 {[%emt 0:00:12]} Na6 {[%emt 0:00:16]} 9. O-O {[%emt 0:00:09]} Be7 {[%emt 0:00:51]} 10. Ne3 {[%emt 0:00:22]} Be6 {[%emt 0:02:11]} 11. Qc2 {[%emt 0:12:21]} Nb4 {[%emt 0:00:30]} 12. Qb1 {[%emt 0:04:51]} h5 {[%emt 0:01:03]} 13. a3 {[%emt 0:25:45]} Nbd5 {[%emt 0:00:05]} 14. Nexd5 {[%emt 0:11:41]} cxd5 {[%emt 0:03:38]} 15. d3 {[%emt 0:04:32]} h4 {[%emt 0:17:50]} 16. Bf4 {[%emt 0:00:12]} Qh5 {[%emt 0:00:06]} 17. dxe4 {[%emt 0:01:07]} hxg3 {[%emt 0:01:50]} 18. Bxg3 {[%emt 0:00:44]} d4 {[%emt 0:07:08]} 19. e5 {[%emt 0:18:24]} dxc3 {[%emt 0:01:23]} 20. exf6 {[%emt 0:00:25]} Bxf6 {[%emt 0:01:00]} 21. bxc3 {[%emt 0:00:35]} O-O {[%emt 0:03:23]} 22. Bf3 {[%emt 0:05:52]} Bg4 {[%emt 0:01:38]} 23. Qxb7 {[%emt 0:00:35]} Bxf3 {[%emt 0:00:15]} 24. exf3 {[%emt 0:01:35]} Bxc3 {[%emt 0:12:47]} 25. Rad1 {[%emt 0:00:07]} a6 {[%emt 0:09:27]} 26. Rd7 {[%emt 0:02:16]} Rad8 {[%emt 0:07:06]} 27. Kg2 {[%emt 0:05:50]} Qb5 {[%emt 0:08:31]} 28. Rc7 {[%emt 0:03:58]} Qxb7 {[%emt 0:04:47]} 29. Rxb7 {[%emt 0:00:04]} Rd5 {[%emt 0:00:27]} 30. Rc1 {[%emt 0:00:48]} Be5 {[%emt 0:01:12]} 31. Rc4 {[%emt 0:01:00]} Ra5 {[%emt 0:11:31]} 32. a4 {[%emt 0:00:11]} Rd8 {[%emt 0:02:29]} 33. Re4 {[%emt 0:00:14]} Bxg3 {[%emt 0:02:48]} 34. hxg3 {[%emt 0:00:28]} Rf5 {[%emt 0:00:21]} 35. Ra7 {[%emt 0:01:17]} Rf6 {[%emt 0:00:15]} 36. Re5 {[%emt 0:01:16]} g6 {[%emt 0:01:13]} 37. f4 {[%emt 0:00:28]} Rd4 {[%emt 0:00:19]} 38. Ra5 {[%emt 0:00:15]} Rdd6 {[%emt 0:00:07]} 39. Kf3 {[%emt 0:00:39]} Kg7 {[%emt 0:00:39]} 40. Kg4 {[%emt 0:00:00]} Rc6 {[%emt 0:00:00]} 41. Ra8 {[%emt 0:03:58]} Rfd6 {[%emt 0:05:02]} 42. Ra7 {[%emt 0:01:19]} Rf6 {[%emt 0:00:39]} 43. f3 {[%emt 0:03:46]} Rb6 {[%emt 0:03:20]} 44. Kg5 {[%emt 0:01:31]} Rbc6 {[%emt 0:05:05]} 45. Re7 {[%emt 0:05:10]} Rc3 {[%emt 0:03:00]} 46. Ra7 {[%emt 0:00:17]} Rcc6 {[%emt 0:00:12]} 47. g4 {[%emt 0:00:33]} Rcd6 {[%emt 0:00:49]} 48. f5 {[%emt 0:01:55]} gxf5 {[%emt 0:00:34]} 49. gxf5 {[%emt 0:05:53]} Rc6 {[%emt 0:01:55]} 50. Rd5 {[%emt 0:02:31]} Rc1 {[%emt 0:05:55]} 51. Ra5 {[%emt 0:02:58]} Rcc6 {[%emt 0:00:08]} 52. Ra8 {[%emt 0:00:20]} Rfd6 {[%emt 0:00:10]} 53. Ra7 {[%emt 0:01:59]} Rf6 {[%emt 0:11:13]} 1/2-1/2

[Event "European Womens-ch 2025"]
[Site "Rhodes"]
[Date "2025.04.09"]
[Round "9.6"]
[White "Kiolbasa, Oliwia"]
[Black "Tsolakidou, Stavroula"]
[Result "1/2-1/2"]
[Annotator "ChessBase"]
[ECO "C02"]
[WhiteElo "2360"]
[BlackElo "2445"]
[PlyCount "60"]
[EventDate "2025.03.29"]
[EventType "swiss"]
[EventCountry "GRE"]
[SourceTitle "playchess.com"]
[Source "ChessBase"]
[SourceQuality "1"]
[TimeControl "40/5400+30:1800+30"]

1. e4 {[%emt 0:00:03]} e6 {[%emt 0:02:11]} 2. d4 {[%emt 0:00:12]} d5 {[%emt 0:00:13]} 3. e5 {[%emt 0:00:06]} c5 {[%emt 0:00:12]} 4. c3 {[%emt 0:00:06]} Nc6 {[%emt 0:00:07]} 5. Nf3 {[%emt 0:00:05]} Nge7 {[%emt 0:00:17]} 6. Na3 {[%emt 0:02:31]} Bd7 {[%emt 0:00:19]} 7. Nc2 {[%emt 0:06:09]} Qa5 {[%emt 0:00:46]} 8. Bd2 {[%emt 0:08:58]} Qb6 {[%emt 0:00:33]} 9. dxc5 {[%emt 0:02:46]} Qc7 {[%emt 0:01:39]} 10. Be2 {[%emt 0:00:47]} Ng6 {[%emt 0:07:50]} 11. b4 {[%emt 0:01:27]} Ncxe5 {[%emt 0:02:07]} 12. Nxe5 {[%emt 0:24:01]} Nxe5 {[%emt 0:13:27]} 13. f4 {[%emt 0:00:37]} Nc4 {[%emt 0:02:38]} 14. Bxc4 {[%emt 0:02:24]} dxc4 {[%emt 0:00:05]} 15. Nd4 {[%emt 0:00:05]} Be7 {[%emt 0:07:02]} 16. O-O {[%emt 0:04:01]} O-O {[%emt 0:03:35]} 17. Qf3 {[%emt 0:00:46]} Bf6 {[%emt 0:02:22]} 18. Qe2 {[%emt 0:15:09]} b6 {[%emt 0:03:20]} 19. Qxc4 {[%emt 0:04:19]} Rfc8 {[%emt 0:06:58]} 20. Nb3 {[%emt 0:04:30]} a5 {[%emt 0:05:55]} 21. bxa5 {[%emt 0:05:11]} bxa5 {[%emt 0:14:20]} 22. Be3 {[%emt 0:00:49]} a4 {[%emt 0:01:17]} 23. Nd2 {[%emt 0:01:03]} Be7 {[%emt 0:01:52]} 24. Ne4 {[%emt 0:12:24]} Bc6 {[%emt 0:07:19]} 25. Rf2 {[%emt 0:00:22]} Bxe4 {[%emt 0:02:39]} 26. Qxe4 {[%emt 0:00:05]} Bxc5 {[%emt 0:00:04]} 27. Bd4 {[%emt 0:00:30]} Bxd4 {[%emt 0:01:10]} 28. cxd4 {[%emt 0:00:06]} Qc4 {[%emt 0:00:23]} 29. f5 {[%emt 0:01:29]} exf5 {[%emt 0:01:07]} 30. Qxf5 {[%emt 0:00:06]} Rd8 {[%emt 0:10:23]} 1/2-1/2

[Event "European Womens-ch 2025"]
[Site "Rhodes"]
[Date "2025.04.09"]
[Round "9.7"]
[White "Doluhanova, Evgeniya"]
[Black "Khotenashvili, Bella"]
[Result "1/2-1/2"]
[Annotator "ChessBase"]
[ECO "B15"]
[WhiteElo "2287"]
[BlackElo "2418"]
[PlyCount "147"]
[EventDate "2025.03.29"]
[EventType "swiss"]
[EventCountry "GRE"]
[SourceTitle "playchess.com"]
[Source "ChessBase"]
[SourceQuality "1"]
[TimeControl "40/5400+30:1800+30"]

1. e4 {[%emt 0:00:03]} c6 {[%emt 0:02:59]} 2. d4 {[%emt 0:00:05]} d5 {[%emt 0:00:19]} 3. Nc3 {[%emt 0:00:05]} dxe4 {[%emt 0:00:41]} 4. Nxe4 {[%emt 0:00:05]} Nf6 {[%emt 0:00:05]} 5. Nxf6+ {[%emt 0:00:18]} exf6 {[%emt 0:00:19]} 6. Bc4 {[%emt 0:00:09]} Nd7 {[%emt 0:04:00]} 7. Nf3 {[%emt 0:03:58]} Nb6 {[%emt 0:00:45]} 8. Bb3 {[%emt 0:04:33]} a5 {[%emt 0:00:53]} 9. a4 {[%emt 0:01:46]} Be7 {[%emt 0:02:29]} 10. O-O {[%emt 0:00:49]} O-O {[%emt 0:02:54]} 11. Re1 {[%emt 0:07:21]} Re8 {[%emt 0:06:06]} 12. Bd2 {[%emt 0:00:57]} Bg4 {[%emt 0:13:10]} 13. c3 {[%emt 0:28:18]} Nd5 {[%emt 0:06:08]} 14. h3 {[%emt 0:00:40]} Bh5 {[%emt 0:01:13]} 15. c4 {[%emt 0:07:02]} Nb4 {[%emt 0:00:17]} 16. Bc3 {[%emt 0:00:32]} Qd7 {[%emt 0:12:03]} 17. c5 {[%emt 0:21:04]} Nd5 {[%emt 0:11:45]} 18. Bxd5 {[%emt 0:10:59]} Qxd5 {[%emt 0:02:06]} 19. Re3 {[%emt 0:00:12]} Bf8 {[%emt 0:04:13]} 20. Qe2 {[%emt 0:00:17]} Rxe3 {[%emt 0:14:35]} 21. Qxe3 {[%emt 0:00:05]} Bg6 {[%emt 0:04:11]} 22. Nd2 {[%emt 0:03:14]} Bf5 {[%emt 0:04:24]} 23. Qf3 {[%emt 0:02:09]} Qe6 {[%emt 0:00:18]} 24. Qe3 {[%emt 0:02:00]} Be7 {[%emt 0:03:07]} 25. Re1 {[%emt 0:01:55]} Bd8 {[%emt 0:02:37]} 26. g4 {[%emt 0:01:07]} Qxe3 {[%emt 0:00:38]} 27. Rxe3 {[%emt 0:00:49]} Be6 {[%emt 0:00:30]} 28. b3 {[%emt 0:03:18]} Bc7 {[%emt 0:00:51]} 29. Nc4 {[%emt 0:00:08]} h5 {[%emt 0:00:32]} 30. f3 {[%emt 0:00:15]} Kf8 {[%emt 0:00:41]} 31. Kg2 {[%emt 0:00:04]} Kg8 {[%emt 0:00:33]} 32. Re1 {[%emt 0:01:14]} Kf8 {[%emt 0:00:17]} 33. Rb1 {[%emt 0:00:49]} Ke7 {[%emt 0:00:22]} 34. Ne3 {[%emt 0:00:22]} Kd7 {[%emt 0:00:15]} 35. Nc4 {[%emt 0:00:40]} f5 {[%emt 0:01:02]} 36. gxh5 {[%emt 0:00:23]} f4 {[%emt 0:00:36]} 37. Kf2 {[%emt 0:00:33]} Rh8 {[%emt 0:00:24]} 38. Rg1 {[%emt 0:00:37]} Rxh5 {[%emt 0:00:21]} 39. Rxg7 {[%emt 0:00:05]} Rxh3 {[%emt 0:00:10]} 40. Kg2 {[%emt 0:00:00]} Rh5 {[%emt 0:00:00]} 41. Bxa5 {[%emt 0:10:50]} Bxa5 {[%emt 0:06:55]} 42. Nxa5 {[%emt 0:00:09]} Rd5 {[%emt 0:00:31]} 43. Nxb7 {[%emt 0:00:40]} Rxd4 {[%emt 0:00:08]} 44. Rg8 {[%emt 0:08:45]} Rd2+ {[%emt 0:07:25]} 45. Kf1 {[%emt 0:03:33]} Ra2 {[%emt 0:05:08]} 46. Na5 {[%emt 0:01:41]} Rc2 {[%emt 0:01:44]} 47. Rg5 {[%emt 0:01:41]} Rc3 {[%emt 0:00:23]} 48. Ke2 {[%emt 0:00:36]} Re3+ {[%emt 0:00:43]} 49. Kf2 {[%emt 0:04:54]} Bd5 {[%emt 0:00:11]} 50. Nc4 {[%emt 0:00:23]} Rxf3+ {[%emt 0:01:38]} 51. Ke2 {[%emt 0:00:15]} Rxb3 {[%emt 0:01:11]} 52. Nb6+ {[%emt 0:01:11]} Ke6 {[%emt 0:00:02]} 53. Nxd5 {[%emt 0:00:36]} cxd5 {[%emt 0:00:01]} 54. Rg8 {[%emt 0:00:16]} Rc3 {[%emt 0:03:02]} 55. Rc8 {[%emt 0:00:21]} Ke5 {[%emt 0:01:39]} 56. a5 {[%emt 0:00:35]} f3+ {[%emt 0:00:31]} 57. Kd2 {[%emt 0:01:45]} Kd4 {[%emt 0:07:29]} 58. Rf8 {[%emt 0:01:19]} Rxc5 {[%emt 0:01:14]} 59. Rxf7 {[%emt 0:00:09]} Ke4 {[%emt 0:00:16]} 60. a6 {[%emt 0:01:14]} Ra5 {[%emt 0:00:05]} 61. Re7+ {[%emt 0:00:35]} Kf4 {[%emt 0:00:42]} 62. a7 {[%emt 0:00:10]} Ra2+ {[%emt 0:01:06]} 63. Ke1 {[%emt 0:00:45]} d4 {[%emt 0:00:05]} 64. Rf7+ {[%emt 0:00:27]} Ke3 {[%emt 0:00:01]} 65. Re7+ {[%emt 0:00:08]} Kd3 {[%emt 0:00:01]} 66. Rf7 {[%emt 0:00:20]} f2+ {[%emt 0:01:44]} 67. Kf1 {[%emt 0:01:00]} Kc3 {[%emt 0:00:16]} 68. Rc7+ {[%emt 0:00:11]} Kd2 {[%emt 0:00:50]} 69. Kxf2 {[%emt 0:00:23]} d3 {[%emt 0:00:07]} 70. Rd7 {[%emt 0:00:45]} Ra6 {[%emt 0:00:13]} 71. Kf3 {[%emt 0:00:47]} Rf6+ {[%emt 0:01:14]} 72. Ke4 {[%emt 0:00:17]} Re6+ {[%emt 0:00:06]} 73. Kd5 {[%emt 0:00:32]} Ra6 {[%emt 0:00:33]} 74. Kc4 {[%emt 0:00:21]} 1/2-1/2

[Event "European Womens-ch 2025"]
[Site "Rhodes"]
[Date "2025.04.09"]
[Round "9.8"]
[White "Velikic, Adela"]
[Black "Danielian, Elina"]
[Result "0-1"]
[Annotator "ChessBase"]
[ECO "C18"]
[WhiteElo "2214"]
[BlackElo "2398"]
[PlyCount "104"]
[EventDate "2025.03.29"]
[EventType "swiss"]
[EventCountry "GRE"]
[SourceTitle "playchess.com"]
[Source "ChessBase"]
[SourceQuality "1"]
[TimeControl "40/5400+30:1800+30"]

1. e4 {[%emt 0:00:03]} e6 {[%emt 0:00:21]} 2. d4 {[%emt 0:00:05]} d5 {[%emt 0:00:04]} 3. Nc3 {[%emt 0:00:05]} Bb4 {[%emt 0:00:31]} 4. e5 {[%emt 0:00:13]} c5 {[%emt 0:00:06]} 5. a3 {[%emt 0:00:06]} Bxc3+ {[%emt 0:00:04]} 6. bxc3 {[%emt 0:00:04]} Qa5 {[%emt 0:00:09]} 7. Bd2 {[%emt 0:01:23]} Qa4 {[%emt 0:00:06]} 8. Qg4 {[%emt 0:05:18]} Kf8 {[%emt 0:00:06]} 9. h4 {[%emt 0:12:56]} Nc6 {[%emt 0:29:15]} 10. Rh3 {[%emt 0:27:31]} Nge7 {[%emt 0:00:17]} 11. Nf3 {[%emt 0:03:43]} h6 {[%emt 0:26:40]} 12. Bd3 {[%emt 0:09:02]} c4 {[%emt 0:00:19]} 13. Be2 {[%emt 0:12:07]} Qxc2 {[%emt 0:00:06]} 14. h5 {[%emt 0:02:32]} Na5 {[%emt 0:06:51]} 15. Rc1 {[%emt 0:13:23]} Qe4 {[%emt 0:08:17]} 16. Qg3 {[%emt 0:03:55]} Bd7 {[%emt 0:03:56]} 17. Qh2 {[%emt 0:03:45]} Nb3 {[%emt 0:01:59]} 18. Rd1 {[%emt 0:01:22]} Ba4 {[%emt 0:00:23]} 19. Kf1 {[%emt 0:01:53]} Rc8 {[%emt 0:05:31]} 20. Be1 {[%emt 0:00:16]} Rc6 {[%emt 0:04:10]} 21. Nh4 {[%emt 0:00:25]} Na5 {[%emt 0:02:52]} 22. Rc1 {[%emt 0:00:45]} Rb6 {[%emt 0:00:34]} 23. Re3 {[%emt 0:00:12]} Qh7 {[%emt 0:00:06]} 24. Qf4 {[%emt 0:00:20]} Ke8 {[%emt 0:01:02]} 25. Rf3 {[%emt 0:00:35]} Rf8 {[%emt 0:00:06]} 26. g4 {[%emt 0:00:45]} Rb2 {[%emt 0:00:48]} 27. Re3 {[%emt 0:00:29]} g5 {[%emt 0:01:53]} 28. hxg6 {[%emt 0:00:20]} fxg6 {[%emt 0:00:03]} 29. Qh2 {[%emt 0:00:27]} g5 {[%emt 0:00:11]} 30. Nf3 {[%emt 0:00:23]} Nb3 {[%emt 0:01:28]} 31. Qh5+ {[%emt 0:00:38]} Kd7 {[%emt 0:00:50]} 32. Rd1 {[%emt 0:00:42]} Rxe2 {[%emt 0:01:16]} 33. Kxe2 {[%emt 0:00:40]} Qc2+ {[%emt 0:00:10]} 34. Rd2 {[%emt 0:00:30]} Nxd2 {[%emt 0:00:28]} 35. Nxd2 {[%emt 0:00:14]} Qd1+ {[%emt 0:01:07]} 36. Kf1 {[%emt 0:00:03]} Bc2 {[%emt 0:02:02]} 37. Qxh6 {[%emt 0:00:22]} Bd3+ {[%emt 0:00:18]} 38. Kg1 {[%emt 0:01:12]} Qxg4+ {[%emt 0:02:44]} 39. Rg3 {[%emt 0:00:10]} Qd1 {[%emt 0:00:08]} 40. Qxf8 {[%emt 0:00:00]} Qxe1+ {[%emt 0:00:00]} 41. Kh2 {[%emt 0:01:34]} Qxd2 {[%emt 0:00:20]} 42. Rf3 {[%emt 0:04:21]} Bf5 {[%emt 0:01:56]} 43. Qb8 {[%emt 0:06:42]} g4 {[%emt 0:00:51]} 44. Rg3 {[%emt 0:04:02]} Qxf2+ {[%emt 0:00:28]} 45. Rg2 {[%emt 0:00:03]} Qh4+ {[%emt 0:00:11]} 46. Kg1 {[%emt 0:00:04]} Qe1+ {[%emt 0:01:18]} 47. Kh2 {[%emt 0:00:04]} Qxc3 {[%emt 0:01:52]} 48. Qxb7+ {[%emt 0:01:08]} Ke8 {[%emt 0:00:05]} 49. Qxa7 {[%emt 0:00:12]} Qh3+ {[%emt 0:01:21]} 50. Kg1 {[%emt 0:00:02]} Be4 {[%emt 0:01:59]} 51. Qb8+ {[%emt 0:03:41]} Kf7 {[%emt 0:00:08]} 52. Rb2 {[%emt 0:01:00]} Qg3+ {[%emt 0:00:11]} 0-1